bitfinex-derivatives/quotes_ETHF0:USTF0_20240904
["timestamp","ask_amount","ask_price","bid_price","bid_amount"]
[1725413889568,0.42266,2366.3,2366.2,3.306376]
[1725413889770,0.6391361,2366.3,2366.2,3.306376]
[1725413889985,16.3021961,2366.3,2366.2,3.306376]
[1725413890167,16.3021961,2366.3,2366.2,2.422246]
[1725413890477,0.42269,2366.1,2366.0,3.86379144]
[1725413890778,4.68723,2366.1,2366.0,0.00632951]
[1725413890986,4.68723,2366.1,2366.0,9.51e-06]
[1725413890987,14.91363,2366.1,2366.0,9.51e-06]
[1725413891182,0.42273,2365.9,2365.8,3.43414979]
[1725413891482,0.42277,2365.7,2365.6,4.95716231]
[1725413891679,4.38,2365.9,2365.6,4.95716231]
[1725413891680,0.42276,2365.8,2365.6,4.95716231]
[1725413891985,4.2272,2365.8,2365.6,4.95716231]
[1725413892282,0.55087907,2366.1,2365.6,4.95716231]
[1725413893176,5.5095,2366.4,2365.6,4.95716231]
[1725413893377,0.42271,2366.0,2365.6,4.95716231]
[1725413893680,0.4227,2366.1,2365.6,4.95716231]
[1725413893883,0.42268,2366.2,2365.6,4.95716231]
[1725413894183,10.23220415,2366.4,2365.6,4.95716231]
[1725413894384,3.2078,2366.1,2365.6,4.95716231]
[1725413894775,4.2272,2366.0,2365.6,4.95716231]
[1725413894978,0.42277,2365.7,2365.6,4.95716231]
[1725413895177,0.42276,2365.8,2365.5,0.00632951]
[1725413895382,0.42278,2365.7,2365.5,0.00632951]
[1725413896279,0.42276,2365.8,2365.5,0.00632951]
[1725413897074,1.05679,2366.0,2365.5,0.00632951]
[1725413897279,0.42278,2365.6,2365.5,0.00632951]
[1725413897680,10.64998,2365.6,2365.5,0.00632951]
[1725413897984,11.70695,2365.6,2365.5,0.00632951]
[1725413898578,11.70695,2365.6,2365.5,9.51e-06]
[1725413898579,12.76392,2365.6,2365.5,9.51e-06]
[1725413898883,15.10683007,2365.6,2365.5,9.51e-06]
[1725413899082,15.10683007,2365.6,2364.2,5.6051]
[1725413899083,12.57011007,2365.6,2364.2,5.6051]
[1725413899291,0.42286,2365.2,2364.5,0.42297]
[1725413899493,0.42286,2365.2,2364.5,3.63077]
[1725413899686,0.42288,2365.1,2364.5,3.63077]
[1725413899885,4.38,2365.2,2364.5,3.2078]
[1725413900192,0.42295,2364.7,2364.6,0.00634303]
[1725413900987,11.70912,2364.7,2364.6,0.00634303]
[1725413901192,12.99795,2364.7,2364.6,0.00634303]
[1725413901394,18.43532,2364.7,2364.6,0.00634303]
[1725413901690,18.43532,2364.7,2363.9,3.2078]
[1725413901691,0.42307,2364.0,2363.9,3.2078]
[1725413901902,0.4231,2363.9,2363.6,4.4173]
[1725413902089,5.43742,2364.6,2363.6,4.4173]
[1725413902296,0.42305,2364.2,2363.6,4.84044]
[1725413902701,0.00634303,2364.1,2363.7,0.42737124]
[1725413903007,0.00634303,2364.1,2364.0,0.42307]
[1725413903210,0.00634303,2364.1,2363.9,3.2078]
[1725413903505,0.00634303,2364.1,2362.6,3.2078]
[1725413903506,3.2078,2364.0,2362.6,3.2078]
[1725413903710,4.38,2363.4,2362.7,4.4655]
[1725413903903,3.31704,2363.9,2363.3,0.42319]
[1725413903904,4.38,2363.9,2363.3,0.42319]
[1725413904202,0.00634303,2364.1,2363.8,0.4231]
[1725413904501,0.00634303,2364.1,2363.6,3.2078]
[1725413904694,0.00634303,2364.1,2363.5,2.2293]
[1725413904997,0.42308,2364.0,2363.5,2.2293]
[1725413905193,0.42311,2363.8,2363.5,2.2293]
[1725413905393,1.06399303,2364.1,2363.5,2.2293]
[1725413905597,0.42314,2363.6,2363.5,2.2293]
[1725413905895,0.00634303,2364.1,2363.5,2.2293]
[1725413906493,1.05773,2363.9,2363.4,4.4655]
[1725413907305,0.42314,2363.6,2363.4,4.4655]
[1725413907894,0.42316,2363.5,2363.4,4.4655]
[1725413908807,3.2078,2363.7,2363.0,3.2078]
[1725413908998,0.42321,2363.3,2363.1,4.6244]
[1725413909199,0.42321,2363.2,2363.1,4.6244]
[1725413909501,4.38,2363.4,2363.1,4.6244]
[1725413909502,0.42321,2363.3,2363.1,4.6244]
[1725413909701,4.38,2363.4,2363.1,4.6244]
[1725413909904,0.42319,2363.4,2363.1,4.6244]
[1725413910095,0.42321,2363.2,2363.1,4.6244]
[1725413910300,0.42321,2363.3,2363.1,4.6244]
[1725413910502,0.4232,2363.3,2363.1,4.6244]
[1725413910705,3.63098,2363.4,2363.1,4.6244]
[1725413911009,3.2078,2363.4,2363.1,4.6244]
[1725413911210,0.42316,2363.5,2363.1,8.8556]
[1725413911513,4.26549,2364.0,2363.1,4.6244]
[1725413911802,3.2078,2363.7,2363.1,5.04762]
[1725413912112,0.42321,2363.2,2363.1,4.6244]
[1725413912600,0.42321,2363.3,2363.1,8.8564]
[1725413912806,0.42321,2363.2,2363.1,4.6244]
[1725413913202,10.09325,2363.2,2363.1,2.2858]
[1725413913406,0.42332,2362.6,2362.0,3.41977165]
[1725413913614,0.00634303,2362.5,2362.4,2.2883]
[1725413914005,0.42968303,2362.5,2362.4,2.2883]
[1725413914509,0.4234,2362.2,2362.0,3.2078]
[1725413914713,0.4234,2362.2,2362.1,2.1759]
[1725413914913,0.42345,2361.9,2361.5,3.2078]
[1725413915217,0.42344,2362.0,2361.5,5.3837]
[1725413915413,3.63122,2362.1,2361.6,0.42349]
[1725413915712,3.63122,2362.1,2361.5,5.3837]
[1725413915713,3.2078,2362.1,2361.5,5.3837]
[1725413915916,3.2078,2362.1,2361.7,0.42347]
[1725413916307,3.2078,2362.1,2361.8,0.42346]
[1725413917005,0.42969303,2362.5,2361.9,4.2336]
[1725413917206,0.42969303,2362.5,2361.9,0.42344]
[1725413917207,0.42336,2362.4,2361.9,0.42344]
[1725413917511,4.38,2362.3,2361.6,2.1712]
[1725413917711,0.42342,2362.1,2361.8,3.2078]
[1725413918015,0.42346,2361.9,2361.6,2.1712]
[1725413918213,0.42347,2361.8,2361.6,2.1712]
[1725413918813,3.63124,2362.0,2361.6,2.1712]
[1725413919016,0.42345,2361.9,2361.6,2.1712]
[1725413919209,0.42347,2361.8,2361.6,2.1712]
[1725413919404,0.42345,2361.9,2361.6,2.1712]
[1725413919613,3.63124,2362.0,2361.6,2.1712]
[1725413919818,3.2078,2362.0,2361.6,2.5947]
[1725413920016,3.2078,2362.0,2361.7,0.42348]
[1725413920310,0.00634303,2362.5,2361.8,3.2078]
[1725413920516,0.00634303,2362.5,2362.3,0.42337]
[1725413920714,0.00634303,2362.5,2362.4,4.5428]
[1725413921422,0.00634303,2362.5,2362.4,9.19896]
[1725413921618,3.2078,2363.3,2362.4,17.9834]
[1725413921815,3.2078,2363.3,2362.7,3.2078]
[1725413922115,3.2078,2363.3,2363.1,0.42321]
[1725413922318,3.2078,2363.3,2363.0,0.42324]
[1725413922513,3.2078,2363.3,2363.1,0.42323]
[1725413922717,3.2078,2363.3,2362.9,0.00634303]
[1725413923411,3.631,2363.3,2362.9,0.00634303]
[1725413923714,3.2078,2363.3,2363.0,0.42325]
[1725413924020,3.2078,2363.3,2363.1,2.1794]
[1725413924816,3.2078,2363.3,2363.2,4.65441]
[1725413925015,3.2078,2364.2,2363.2,4.2312]
[1725413925217,3.2078,2364.2,2363.1,5.3872]
[1725413925218,4.38,2364.0,2363.1,5.3872]
[1725413925415,4.38,2364.0,2363.6,0.42313]
[1725413925713,4.38,2364.0,2363.1,5.3872]
[1725413925714,3.2078,2364.2,2363.1,5.3872]
[1725413925913,3.2078,2364.5,2363.5,4.38]
[1725413926119,0.00634303,2364.2,2363.7,3.2078]
[1725413926314,0.00634303,2364.2,2363.8,4.2304]
[1725413926514,0.00634303,2364.2,2364.1,0.42305]
[1725413926722,0.42294,2364.8,2364.3,0.42301]
[1725413927014,3.2078,2364.9,2364.2,0.42302]
[1725413927015,0.42297,2364.6,2364.2,0.42302]
[1725413927216,0.42297,2364.6,2364.0,3.2078]
[1725413927217,4.38,2364.6,2364.0,3.2078]
[1725413927423,3.2078,2364.5,2363.9,2.1889]
[1725413927714,0.42935303,2364.4,2364.0,0.00634303]
[1725413928120,0.00634303,2364.4,2364.0,0.00634303]
[1725413928522,0.00634303,2364.4,2364.0,0.42940303]
[1725413928717,0.00634303,2364.4,2364.2,0.42303]
[1725413929013,0.00634303,2364.4,2364.3,0.42302]
[1725413929220,0.00634303,2364.4,2364.3,4.2296]
[1725413930018,0.00634303,2364.4,2364.2,0.42302]
[1725413930210,0.00634303,2364.4,2364.2,4.2296]
[1725413930414,0.00634303,2364.4,2364.1,2.59754]
[1725413930618,0.00634303,2364.4,2364.2,0.42303]
[1725413931026,0.00634303,2364.4,2364.3,0.42302]
[1725413931318,0.00634303,2364.4,2364.2,0.42303]
[1725413931722,0.00634303,2364.4,2364.1,2.59754]
[1725413932116,0.00634303,2364.4,2364.1,2.1745]
[1725413932322,0.00634303,2364.4,2364.2,0.42302]
[1725413932521,0.00634303,2364.4,2364.1,2.1745]
[1725413932823,0.42303,2364.3,2364.0,0.00634303]
[1725413933019,0.42304,2364.2,2364.0,0.00634303]
[1725413933219,0.42303,2364.3,2364.0,0.00634303]
[1725413933519,0.00634303,2364.4,2364.0,0.00634303]
[1725413933825,0.42305,2364.1,2364.0,0.00634303]
[1725413934719,0.00634303,2364.4,2364.3,0.42302]
[1725413934922,0.42295,2364.7,2364.3,7.653948]
[1725413935225,3.2078,2365.0,2364.3,3.2078]
[1725413935530,0.42297,2364.6,2364.2,0.42303]
[1725413935710,0.42294,2364.8,2364.0,0.00634303]
[1725413935913,3.2078,2365.0,2364.0,0.00634303]
[1725413935914,0.00634303,2364.6,2364.1,3.2078]
[1725413936417,0.42303,2364.2,2364.1,3.2078]
[1725413936619,0.42302,2364.3,2364.1,3.2078]
[1725413936829,0.00634303,2364.6,2364.1,3.2078]
[1725413937017,0.42930303,2364.6,2364.2,0.42303]
[1725413937521,0.42298,2364.5,2364.1,3.63084]
[1725413937828,0.42931303,2364.6,2364.1,3.2078]
[1725413938331,0.42299,2364.5,2364.1,3.63084]
[1725413938925,0.423,2364.5,2364.1,3.63084]
[1725413939336,0.00634303,2364.6,2364.1,3.2078]
[1725413939626,0.42303,2364.3,2364.1,3.2078]
[1725413939825,0.00634303,2364.6,2364.1,3.63084]
[1725413940028,0.42302,2364.3,2364.1,3.2078]
[1725413940223,0.00634303,2364.6,2364.1,3.63084]
[1725413940224,0.42299,2364.5,2364.1,3.63084]
[1725413940728,0.00634303,2364.6,2364.1,3.2078]
[1725413940932,0.00634303,2364.6,2364.4,0.42299]
[1725413941125,0.00634303,2364.6,2364.1,3.2078]
[1725413941126,0.00634303,2364.6,2364.3,0.42301]
[1725413941324,0.42931303,2364.6,2364.2,0.42303]
[1725413941534,0.42931303,2364.6,2364.1,3.2078]
[1725413941535,0.42303,2364.2,2364.1,3.2078]
[1725413941721,0.42303,2364.2,2364.0,0.00634303]
[1725413941722,0.42305,2364.1,2364.0,0.00634303]
[1725413941921,1.48069,2364.1,2364.0,0.00634303]
[1725413942126,5.71029,2364.1,2364.0,0.00634303]
[1725413942428,0.4231,2363.9,2363.5,0.42316]
[1725413943039,0.42313,2363.7,2363.4,2.3098]
[1725413943223,0.42313,2363.7,2363.3,2.64689]
[1725413943224,0.42318,2363.4,2363.2,3.2078]
[1725413943432,4.39601342,2364.1,2363.3,0.00634303]
[1725413943629,0.42314,2363.7,2363.3,0.00634303]
[1725413944019,0.42314,2363.7,2363.3,0.42954303]
[1725413944230,1.05768,2364.0,2363.3,0.00634303]
[1725413944421,3.2078,2364.1,2363.3,0.00634303]
[1725413944728,0.4231,2363.9,2363.3,2.23004303]
[1725413945037,3.2078,2364.1,2363.3,2.23004303]
[1725413945038,0.42312,2363.8,2363.3,2.23004303]
[1725413945326,0.42312,2363.8,2363.4,0.42318]
[1725413945718,0.42313,2363.7,2363.3,2.65323303]
[1725413945925,1.05768,2364.0,2363.3,0.00634303]
[1725413946132,0.42318,2363.4,2363.3,0.00634303]
[1725413946435,0.42315,2363.6,2363.3,0.00634303]
[1725413946627,4.52,2363.9,2363.3,0.00634303]
[1725413946827,0.42315,2363.6,2363.3,0.00634303]
[1725413947026,0.42313,2363.7,2363.3,0.00634303]
[1725413947540,0.42311,2363.8,2363.3,0.00634303]
[1725413947727,4.52,2363.9,2363.3,0.00634303]
[1725413947928,3.2078,2364.0,2363.3,4.38634303]
[1725413948128,3.2078,2364.0,2363.9,0.42309]
[1725413948430,0.00634303,2364.6,2363.9,4.59636629]
[1725413948736,0.00634303,2364.6,2364.4,0.42299]
[1725413949035,0.00634303,2364.6,2364.5,0.42298]
[1725413949225,0.00634303,2364.6,2364.5,3.63078]
[1725413949426,0.00634303,2364.6,2364.5,13.85958]
[1725413949935,0.00634303,2364.6,2364.5,4.2288]
[1725413950123,0.00634303,2364.6,2364.3,2.2493]
[1725413950323,0.00634303,2364.6,2364.5,0.42298]
[1725413950630,0.00634303,2364.6,2364.5,3.63078]
[1725413950828,0.00634303,2364.6,2364.5,13.85958]
[1725413951026,0.00634303,2364.6,2364.5,4.65178]
[1725413951722,0.00634303,2364.6,2364.5,4.2288]
[1725413951929,0.00634303,2364.6,2364.3,2.2493]
[1725413952123,0.00634303,2364.6,2364.5,0.42298]
[1725413952632,0.00634303,2364.6,2364.5,13.85958]
[1725413955638,3.2078,2365.4,2365.3,0.42284]
[1725413955937,0.4227,2366.1,2365.6,0.42277]
[1725413956132,0.4227,2366.1,2365.5,3.63059]
[1725413956440,0.4227,2366.1,2365.6,0.42278]
[1725413956630,0.42904303,2366.1,2365.6,0.42912303]
[1725413956824,0.00634303,2366.1,2365.7,0.42277]
[1725413957036,0.00634303,2366.1,2365.8,0.42274]
[1725413957233,0.00634303,2366.1,2365.9,0.42273]
[1725413957537,0.00634303,2366.1,2365.8,3.2078]
[1725413957727,0.00634303,2366.1,2365.8,0.42274]
[1725413957927,0.00634303,2366.1,2365.7,0.42276]
[1725413958332,0.00634303,2366.1,2365.6,0.00634303]
[1725413958542,0.00634303,2366.1,2365.8,0.42273]
[1725413958737,0.00634303,2366.1,2366.0,0.42271]
[1725413959034,0.00634303,2366.1,2365.9,0.42272]
[1725413959625,0.00634303,2366.1,2365.8,3.2078]
[1725413959932,0.00634303,2366.1,2365.8,3.63054]
[1725413960737,0.00634303,2366.1,2365.8,3.2078]
[1725413961733,0.00634303,2366.1,2365.8,0.42275]
[1725413961929,0.00634303,2366.1,2365.6,2.35204303]
[1725413962129,0.00634303,2366.1,2365.9,0.42272]
[1725413962537,0.00634303,2366.1,2365.9,4.64912]
[1725413962840,0.00634303,2366.1,2365.9,4.2264]
[1725413963042,0.00634303,2366.1,2365.9,0.42273]
[1725413963244,0.00634303,2366.1,2365.8,3.63054]
[1725413964135,0.00634303,2366.1,2365.8,3.2078]
[1725413964338,0.00634303,2366.1,2365.9,0.42273]
[1725413965043,0.00634303,2366.1,2365.8,3.63054]
[1725413965546,0.00634303,2366.1,2366.0,0.42271]
[1725413965946,0.00634303,2366.1,2366.0,4.64911]
[1725413968344,3.2078,2366.8,2366.4,0.42263]
[1725413968552,3.63037,2366.8,2366.3,0.42265]
[1725413968855,3.2078,2366.8,2366.3,0.42265]
[1725413969248,3.2078,2366.8,2366.4,0.42264]
[1725413969443,3.2078,2367.6,2366.5,3.2078]
[1725413969643,3.2078,2367.6,2366.8,3.2078]
[1725413969644,0.42245,2367.5,2366.8,3.2078]
[1725413969845,6.8427,2367.6,2367.1,3.6303]
[1725413970055,4.4905,2367.6,2367.2,0.42249]
[1725413970238,3.2078,2367.9,2367.2,4.38]
[1725413970438,0.0042287,2367.8,2367.2,6.6281]
[1725413970741,0.0042287,2367.8,2367.5,0.42244]
[1725413971143,0.0042287,2367.8,2367.5,4.38]
[1725413971354,0.0042287,2367.8,2367.7,0.42241]
[1725413971555,0.0042287,2367.8,2367.7,4.80241]
[1725413971853,0.42219,2369.0,2368.3,0.42229]
[1725413972055,0.4222,2368.9,2368.3,7.5878]
[1725413972355,1.05578,2368.3,2367.3,3.21414303]
[1725413972647,0.42238,2367.9,2367.3,0.00634303]
[1725413972849,0.42246,2367.4,2367.3,0.00634303]
[1725413973065,3.2078,2367.8,2367.3,0.00634303]
[1725413973449,0.42237,2368.0,2367.3,0.42880303]
[1725413973646,3.2078,2368.1,2367.3,7.59414303]
[1725413974050,3.2078,2368.1,2367.4,4.558]
[1725413974364,3.2078,2368.1,2367.7,0.42241]
[1725413974853,3.2078,2368.1,2367.6,3.63022]
[1725413975248,5.00163,2368.2,2367.6,3.63022]
[1725413975444,7.7871,2368.2,2367.6,3.63022]
[1725413975750,4.5793,2368.2,2367.6,7.5878]
[1725413976545,4.5793,2368.2,2367.8,0.42238]
[1725413977955,4.5793,2368.2,2367.6,3.2078]
[1725413977956,0.42235,2368.1,2367.6,3.2078]
[1725413978152,8.20943,2368.2,2367.6,3.63021]
[1725413978355,8.20943,2368.2,2367.6,3.63022]
[1725413979055,8.20943,2368.2,2367.7,0.42241]
[1725413979255,8.20943,2368.2,2367.6,3.63022]
[1725413979853,0.42234,2368.1,2367.6,3.63022]
[1725413980050,8.20943,2368.2,2367.6,3.63022]
[1725413980254,7.7871,2368.2,2367.6,7.5878]
[1725413980566,2.2547,2368.6,2367.9,7.5878]
[1725413980760,6.2654356,2370.6,2368.5,7.5878]
[1725413980948,6.2654356,2370.6,2370.4,4.38]
[1725413981352,6.2654356,2370.6,2370.3,0.00632778]
[1725413981353,0.42193,2370.4,2370.3,0.00632778]
[1725413981654,0.212,2370.5,2370.3,0.00632778]
[1725413981655,2.3651,2370.5,2370.3,0.00632778]
[1725413981850,0.212,2370.4,2370.3,0.00632778]
[1725413982155,0.422,2370.0,2369.9,3.2078]
[1725413982462,0.42204,2369.8,2369.5,4.38]
[1725413982763,0.42205,2369.8,2369.2,4.38]
[1725413982960,2.3651,2369.7,2369.2,4.38]
[1725413983159,2.3651,2369.7,2369.5,4.38]
[1725413984360,7.00715,2369.7,2369.5,4.38]
[1725413984556,7.00715,2369.7,2369.4,0.00632778]
[1725413984864,0.42209,2369.5,2369.4,0.00632778]
[1725413985061,4.22,2369.6,2369.4,0.00632778]
[1725413985365,2.3651,2369.7,2369.4,0.00632778]
[1725413985366,2.78717,2369.7,2369.4,0.00632778]
[1725413985563,2.3651,2369.7,2369.4,0.00632778]
[1725413985860,0.00627694,2369.8,2369.5,4.38]
[1725413986277,1.05477,2370.6,2369.5,4.38]
[1725413986278,0.42169,2371.8,2369.8,1.05509]
[1725413986457,0.42169,2371.8,2371.7,4.38]
[1725413986965,0.42169,2371.8,2370.3,0.212]
[1725413986966,10.216,2371.8,2371.4,4.38]
[1725413987269,4.498,2372.0,2371.4,4.38632778]
[1725413987457,0.42168,2371.9,2371.7,4.38]
[1725413987863,4.63768,2371.8,2371.7,4.38]
[1725413988074,4.63768,2371.8,2371.5,3.2078]
[1725413988263,0.42167,2371.9,2371.5,3.2078]
[1725413988569,4.498,2372.0,2371.5,3.2078]
[1725413988759,0.42166,2371.9,2371.5,3.2078]
[1725413988959,4.498,2372.0,2371.5,3.2078]
[1725413989167,3.2078,2372.1,2371.5,3.2078]
[1725413989460,2.2345,2372.4,2371.9,3.2078]
[1725413989668,0.42154,2372.6,2372.2,3.2078]
[1725413989868,5.4201,2372.8,2372.2,3.2078]
[1725413990161,4.2152,2372.7,2371.9,3.2078]
[1725413990361,5.4201,2372.8,2372.0,4.56]
[1725413990362,2.2123,2372.8,2372.0,4.56]
[1725413990570,0.42164,2372.0,2371.9,3.2078]
[1725413990863,0.4216,2372.3,2371.9,3.2078]
[1725413991163,0.42164,2372.0,2371.9,3.2078]
[1725413991366,0.42163,2372.1,2371.9,3.2078]
[1725413991765,0.42163,2372.1,2371.6,3.2078]
[1725413991766,0.4217,2371.7,2371.6,3.2078]
[1725413991970,3.21094,2372.0,2371.4,0.00632778]
[1725413992162,0.42171,2371.7,2371.4,0.00632778]
[1725413992358,2.3251,2371.9,2371.4,3.21412778]
[1725413992359,2.74677,2371.9,2371.4,3.21412778]
[1725413992554,2.74677,2371.9,2371.5,4.2168]
[1725413992763,3.2078,2372.3,2371.7,3.2078]
[1725413993055,0.42163,2372.1,2371.7,3.2078]
[1725413993255,3.2078,2372.3,2371.7,3.2078]
[1725413993574,0.42157,2372.5,2372.0,7.7678]
[1725413993765,3.2078,2372.9,2372.0,7.7678]
[1725413993766,3.33759117,2372.9,2372.3,3.2078]
[1725413993968,0.42155,2372.6,2372.3,3.2078]
[1725413994169,5.62709117,2372.9,2372.0,7.7678]
[1725413994366,1.05376,2372.8,2372.0,7.7678]
[1725413994560,0.42116,2374.8,2373.6,3.20779362]
[1725413994755,0.13140895,2374.9,2374.2,3.2078]
[1725413994962,1.05278,2375.0,2374.2,7.7678]
[1725413995263,2.5793748,2375.2,2374.2,7.7678]
[1725413995459,2.5793748,2375.2,2374.5,3.2078]
[1725413995767,0.42114,2374.9,2374.5,3.2078]
[1725413995963,0.42116,2374.8,2374.5,3.2078]
[1725413996158,0.42114,2374.9,2374.5,3.2078]
[1725413996468,0.42114,2374.9,2374.8,3.2078]
[1725413996663,6.0,2374.9,2374.8,3.2078]
[1725413996970,10.2104,2374.9,2374.8,3.2078]
[1725413997168,4.2104,2374.9,2374.8,3.2078]
[1725413997471,2.3687,2375.2,2374.8,3.2078]
[1725413997671,0.42112,2375.0,2374.8,3.2078]
[1725413998167,0.42113,2374.9,2374.8,3.2078]
[1725413998561,4.2104,2374.9,2374.8,3.2078]
[1725413998868,0.42104,2375.4,2375.3,4.07882165]
[1725413999071,0.42106,2375.3,2375.2,4.07882165]
[1725413999362,1.05239,2375.9,2374.9,4.07882165]
[1725413999363,0.42111,2375.0,2374.9,4.07882165]
[1725413999966,0.20816391,2375.5,2374.9,4.07882165]
[1725414000166,0.20816391,2375.5,2375.4,7.28662165]
[1725414000557,0.42094,2376.0,2375.4,7.28662165]
[1725414000762,0.42094,2376.0,2375.2,0.00632778]
[1725414000763,2.1781,2376.6,2375.7,3.2078]
[1725414000962,0.42097,2375.8,2375.7,3.2078]
[1725414001159,3.2078,2375.8,2374.5,3.2078]
[1725414001366,6.802,2376.3,2374.5,3.2078]
[1725414001367,0.42118,2374.6,2374.5,3.2078]
[1725414001564,0.42123,2374.4,2374.1,3.2078]
[1725414001766,3.2078,2375.1,2374.2,4.07882165]
[1725414001767,1.05283,2374.9,2374.2,4.07882165]
[1725414002072,9.42146242,2375.1,2374.3,0.00631366]
[1725414002273,0.42122,2374.4,2374.3,0.00631366]
[1725414002772,3.21408072,2374.8,2374.3,4.08513531]
[1725414002976,0.00628072,2374.8,2374.5,4.07882165]
[1725414003278,0.42116,2374.7,2374.6,4.07882165]
[1725414003775,6.42116,2374.7,2374.3,3.21411366]
[1725414003968,0.42743072,2374.8,2374.5,4.07882165]
[1725414004362,0.00628072,2374.8,2374.5,4.07882165]
[1725414004570,0.00628072,2374.8,2374.6,7.28662165]
[1725414004966,4.2112,2374.7,2374.3,3.21411366]
[1725414005172,0.00628072,2374.8,2374.6,4.07882165]
[1725414005673,0.00628072,2374.8,2374.7,7.28662165]
[1725414006680,6.42744072,2374.8,2374.4,3.2078]
[1725414006973,6.42744072,2374.8,2374.5,4.07882165]
[1725414006974,0.42116,2374.7,2374.5,4.07882165]
[1725414007372,0.00628072,2374.8,2374.6,4.07882165]
[1725414007569,0.00628072,2374.8,2374.7,3.2078]
[1725414007773,0.00628072,2374.8,2374.7,7.28662165]
[1725414008974,0.42101,2375.6,2374.7,9.2078]
[1725414009176,2.1717,2376.0,2375.7,4.07254093]
[1725414009367,1.47352,2375.6,2375.5,3.2078]
[1725414009565,0.42098,2375.8,2375.6,4.07254093]
[1725414009878,1.05221,2376.3,2375.8,4.07254093]
[1725414010075,0.42095,2375.9,2375.8,4.07254093]
[1725414010290,1.05225,2376.2,2375.5,0.00631366]
[1725414010595,0.42093,2376.1,2375.9,4.07254093]
[1725414010895,0.42093,2376.1,2376.0,4.07254093]
[1725414011084,3.2078,2376.4,2376.0,4.07254093]
[1725414011085,3.62867,2376.4,2376.0,4.07254093]
[1725414011284,3.62867,2376.4,2376.3,4.07254093]
[1725414011285,0.42087,2376.4,2376.3,4.07254093]
[1725414011482,6.0,2376.4,2375.9,4.07254093]
[1725414011684,6.0,2376.4,2375.8,3.2078]
[1725414011685,1.05216,2376.4,2375.8,3.2078]
[1725414011993,0.42095,2375.9,2375.8,7.28034093]
[1725414012184,0.42095,2375.9,2375.8,3.2078]
[1725414012384,0.42095,2375.9,2375.8,7.28034093]
[1725414012889,0.421,2375.6,2375.5,0.00631366]
[1725414013088,0.421,2375.6,2375.5,3.66e-06]
[1725414013089,2.52604,2375.6,2375.5,3.66e-06]
[1725414013286,12.73564,2375.6,2375.5,3.66e-06]
[1725414013488,0.42118,2374.6,2374.5,3.2078]
[1725414013690,0.42128,2374.1,2374.0,3.2078]
[1725414013895,0.42128,2374.1,2374.0,7.28034093]
[1725414014090,0.42128,2374.1,2373.2,2.2274]
[1725414014091,10.212,2374.1,2373.6,3.2078]
[1725414014391,0.4214,2373.4,2372.6,4.56]
[1725414014597,0.00631366,2373.2,2373.1,3.2078]
[1725414014796,0.42774366,2373.2,2373.1,3.2078]
[1725414014988,3.2078,2374.2,2373.1,9.62923]
[1725414015187,3.2078,2374.2,2373.0,4.56]
[1725414015188,1.05309,2374.3,2373.6,4.06622727]
[1725414015397,0.42133,2373.8,2373.6,4.06622727]
[1725414015704,0.21558076,2374.7,2373.6,4.06622727]
[1725414015705,1.05301,2374.5,2373.6,4.06622727]
[1725414015992,1.05301,2374.5,2373.7,4.06622727]
[1725414016198,4.4879,2374.8,2374.3,4.06622727]
[1725414016393,2.68876,2374.8,2374.3,4.07254093]
[1725414016692,0.42117,2374.7,2374.3,4.07254093]
[1725414016891,2.2676,2374.8,2374.3,4.07254093]
[1725414017103,2.68876,2374.8,2374.3,4.07254093]
[1725414017393,3.2078,2375.0,2374.3,0.00631366]
[1725414017594,0.42122,2374.4,2374.3,0.00631366]
[1725414018094,10.63322,2374.4,2374.3,0.00631366]
[1725414018295,11.68627,2374.4,2374.3,3.66e-06]
[1725414019097,14.89407,2374.4,2374.3,3.66e-06]
[1725414019691,15.94712,2374.4,2374.3,3.66e-06]
[1725414020993,14.89407,2374.4,2374.3,3.66e-06]
[1725414022100,10.63322,2374.4,2374.3,3.66e-06]
[1725414022510,4.63322,2374.4,2374.3,3.66e-06]
[1725414022699,10.63322,2374.4,2374.3,3.66e-06]
[1725414023007,4.63322,2374.4,2374.3,3.66e-06]
[1725414023205,11.68627,2374.4,2374.3,3.66e-06]
[1725414023403,12.73932,2374.4,2374.3,3.66e-06]
[1725414023802,15.94712,2374.4,2374.3,3.66e-06]
[1725414024502,3.2078,2374.4,2374.3,3.66e-06]
[1725414024703,0.42122,2374.4,2374.3,4.06623093]
[1725414025007,0.42122,2374.4,2374.3,3.66e-06]
[1725414025310,7.47427,2374.4,2374.3,3.66e-06]
[1725414025505,11.68627,2374.4,2374.3,3.66e-06]
[1725414025805,0.42122,2374.4,2374.3,3.66e-06]
[1725414026104,11.68627,2374.4,2374.3,3.66e-06]
[1725414026409,15.94712,2374.4,2374.3,3.66e-06]
[1725414027005,14.89407,2374.4,2374.3,3.66e-06]
[1725414027609,13.84102,2374.4,2374.3,3.66e-06]
[1725414027804,14.89407,2374.4,2374.3,3.66e-06]
[1725414028195,15.05447862,2374.4,2374.3,3.66e-06]
[1725414028702,16.10752862,2374.4,2374.3,3.66e-06]
[1725414029606,1.0532,2374.1,2373.2,3.2078]
[1725414029804,3.36820862,2374.4,2373.2,3.2078]
[1725414029805,0.16040862,2374.4,2374.0,4.06622727]
[1725414030003,0.42132,2373.9,2373.5,3.2078]
[1725414030203,3.36853642,2374.5,2373.9,4.06622727]
[1725414030508,0.42127,2374.1,2374.0,0.00631366]
[1725414031201,4.42156642,2374.5,2374.0,0.00631366]
[1725414031202,0.42126,2374.2,2374.0,0.00631366]
[1725414031395,3.2078,2374.5,2374.1,4.06622727]
[1725414031602,3.2078,2374.5,2374.4,4.06622727]
[1725414032312,3.629,2374.5,2374.4,4.06622727]
[1725414032496,0.42127,2374.1,2374.0,0.00631366]
[1725414032897,3.2078,2374.5,2374.0,4.07254093]
[1725414033110,0.42127,2374.1,2374.0,4.07254093]
[1725414033312,0.42127,2374.1,2374.0,0.00631366]
[1725414033904,6.42127,2374.1,2374.0,0.00631366]
[1725414034310,10.63327,2374.1,2374.0,0.00631366]